fUSD/lending_fUSD_20240116
["ID","MTS","AMOUNT","RATE_DAILY","PERIOD"]
[311816283,1705431046094,-594.91090339,0.00031,2]
[311816284,1705431046106,-585.65050295,0.00031,2]
[311816285,1705431046138,-46758.31302552,0.00031,2]
[311816286,1705431046150,-2400.0,0.00031,3]
[311816287,1705431046160,-10000.0,0.00031,3]
[311816288,1705431046170,-162.16,0.00031033,2]
[311816289,1705431046181,-6220.352475,0.00031043,2]
[311816290,1705431046190,-153.84,0.0003105,2]
[311816291,1705431046200,-167.0,0.0003119,2]
[311816292,1705431046209,-3929.04099024,0.00031234,14]
[311816293,1705431046219,-250.0,0.00031234,2]
[311816294,1705431046229,-6220.352475,0.00031266,2]
[311816295,1705431046238,-284.14142418,0.00031298,2]
[311816296,1705431046247,-151.57472515,0.00031305,7]
[311816298,1705431046255,-182.7182645,0.00031369,2]
[311816300,1705431046264,-332.54949542,0.00031401,2]
[311816302,1705431046274,-16925.93476855,0.00031488,5]
[311816304,1705431046285,-335.62,0.00031488,5]
[311816306,1705431046297,-285.938,0.00031488,5]
[311816342,1705431046593,-4304.4332832,0.00031488,5]
[311816344,1705431046605,-1582.31124968,0.00031488,5]
[311816365,1705431392975,2248.00674586,0.00021857,2]
[311816367,1705431399318,872.60606553,0.0002163,2]
[311816369,1705431451036,154.79769556,0.00021978,2]
[311816370,1705431471157,317.01,0.00021181,2]
[311816371,1705431778474,250.0,0.00022,2]
[311816372,1705431928282,150.0,0.00021901,2]
[311816373,1705431928303,150.0,0.00021901,2]
[311816374,1705431928323,150.0,0.00021901,2]
[311816375,1705431928343,46.18,0.00021901,2]
[311816376,1705431943087,107.4499143,0.00019989,2]
[311816377,1705431943112,150.0,0.00019989,2]
[311816378,1705431943134,64.4800857,0.00019989,2]
[311816379,1705431945879,161.2799143,0.00021907,2]
[311816380,1705431945901,451.7600857,0.00021907,2]
[311816381,1705431960774,600.0,0.00021765,2]
[311816382,1705432017104,683.58,0.00021729,2]
[311816384,1705432041829,325.70108509,0.00022,2]
[311816385,1705432049598,226.2313546,0.00022,2]
[311816394,1705432051942,228.51753188,0.00022,2]
[311816395,1705432057206,447.36775998,0.00022,2]
[311816396,1705432059833,412.79404695,0.00022,2]
[311816397,1705432065156,438.13638494,0.00022,2]
[311816398,1705432073224,447.36775998,0.00020264,2]
[311816399,1705432079611,842.86182891,0.00022,2]
[311816400,1705432080611,372.32237197,0.00022,2]
[311816401,1705432091671,349.99997289,0.00022,2]
[311816402,1705432092489,366.35226248,0.00022,2]
[311816403,1705432095223,447.36775998,0.00020264,2]
[311816404,1705432097110,310.26864331,0.00020491,2]
[311816405,1705432098193,155.0,0.00022,2]
[311816406,1705432098399,2000.0,0.00021649,2]
[311816407,1705432113125,161.64996316,0.00020491,2]
[311816408,1705432113278,447.36775998,0.00020264,2]
[311816409,1705432124458,155.0,0.00022,2]
[311816410,1705432131113,161.64996316,0.0002068,2]
[311816411,1705432133003,155.0,0.00022,2]
[311816412,1705432133082,412.79404695,0.00022,2]
[311816413,1705432135210,447.36775998,0.0002045,2]
[311816414,1705432147649,438.13638494,0.00022,2]
[311816415,1705432148096,-157.97,0.00022001,2]
[311816416,1705432148120,-1060.75904416,0.00022007,2]
[311816417,1705432148141,-300.0,0.00022007,2]
[311816418,1705432148163,-481.27095584,0.00022007,2]
[311816419,1705432148592,-589.16302208,0.00022007,2]
[311816420,1705432148621,-150.0,0.00022007,2]
[311816421,1705432148645,-1260.83697792,0.00022007,2]
[311816422,1705432149450,161.64996316,0.0002068,2]
[311816423,1705432149541,-2000.0,0.00022007,2]
[311816424,1705432149741,-2000.0,0.00022007,2]
[311816425,1705432150226,-554.01334293,0.00022007,2]
[311816426,1705432150246,-1445.98665707,0.00022008,2]
[311816427,1705432150689,-218.18020933,0.00022008,2]
[311816428,1705432150710,-1781.81979067,0.00022008,2]
[311816429,1705432151155,-2000.0,0.00022008,2]
[311816430,1705432152023,-2000.0,0.00022006,2]
[311816431,1705432152570,-2000.0,0.00022006,2]
[311816432,1705432153153,-2000.0,0.00022006,2]
[311816433,1705432153213,447.36775998,0.0002045,2]
[311816434,1705432153740,-2000.0,0.00022006,2]
[311816435,1705432154917,842.86182891,0.00022,2]
[311816436,1705432164148,-347.81114334,0.00022006,2]
[311816437,1705432164171,-1375.86885666,0.00022006,2]
[311816438,1705432165693,161.64996316,0.0002068,2]
[311816439,1705432167157,350.00048549,0.00022,2]
[311816447,1705432171233,447.36775998,0.0002045,2]
[311816477,1705432185632,161.64996316,0.0002068,2]
[311816478,1705432190779,3789.45251597,0.00022,2]
[311816479,1705432193221,545.73184105,0.0002045,2]
[311816480,1705432203644,161.64996316,0.0002068,2]
[311816490,1705432226211,161.64996316,0.0002068,2]
[311816491,1705432229674,4349.20960568,0.00022,2]
[311816511,1705432232037,-256.04000001,0.00022001,2]
[311816515,1705432232059,-2773.49701715,0.00022001,2]
[311816517,1705432232070,-155.0,0.00022001,2]
[311816519,1705432232078,-190.86952875,0.00022001,2]
[311816521,1705432232088,-228.26905656,0.00022001,2]
[311816523,1705432232098,-1664.1668664,0.00022001,2]
[311816525,1705432232111,-155.0,0.00022002,2]
[311816527,1705432232121,-215.06569846,0.00022002,2]
[311816529,1705432232130,-968.21222435,0.00022002,2]
[311816530,1705432232142,-92.54681981,0.00022002,2]
[311816531,1705432232152,-155.0,0.00022003,2]
[311816532,1705432232161,-453.88939778,0.00022004,2]
[311816534,1705432232171,-3555.11984037,0.00022004,2]
[311816536,1705432232181,-5099.53737617,0.000221,2]
[311816538,1705432232191,-8017.57538874,0.00022101,2]
[311816540,1705432232203,-1042.42601603,0.00022101,2]
[311816543,1705432232215,-1403.57398397,0.00022101,2]
[311816545,1705432232228,-792.99802951,0.00022101,2]
[311816547,1705432232240,-977.0591856,0.00022101,2]
[311816548,1705432232276,-547.03,0.00022101,2]
[311816549,1705432232287,-468.15,0.00022101,2]
[311816550,1705432232298,-491.95,0.00022101,2]
[311816551,1705432232312,-327.1268,0.00022101,2]
[311816552,1705432232323,-673.01,0.00022101,2]
[311816554,1705432238185,-32168.52123184,0.00022003,2]
[311816555,1705432238194,-7983.13329744,0.00022102,2]
[311816556,1705432238204,-1019.7,0.00022102,2]
[311816557,1705432238214,-457.15,0.00022253,2]
[311816558,1705432238223,-321.93,0.00022253,2]
[311816559,1705432238233,-400.0,0.000224,8]
[311816560,1705432238242,-299.99,0.000224,7]
[311816561,1705432238253,-499.99,0.000224,2]
[311816562,1705432238262,-161.85,0.00022423,2]
[311816563,1705432238272,-161.7,0.00022429,2]
[311816564,1705432238281,-800.0,0.000225,8]
[311816565,1705432238290,-161.85,0.00022569,2]
[311816566,1705432238300,-1200.0,0.000226,8]
[311816567,1705432238310,-974.15,0.0002261,2]
[311816568,1705432238319,-214.4,0.00022633,2]
[311816569,1705432238329,-2778.2539959,0.0002267,2]
[311816570,1705432238368,-772.48436816,0.0002267,2]
[311816571,1705432238380,-556.54212966,0.0002267,2]
[311816572,1705432238406,-1302.79398952,0.0002267,2]
[311816573,1705432238421,-1738.83631676,0.0002267,2]
[311816574,1705432238432,-547.03,0.0002267,2]
[311816575,1705432238442,-686.7010789,0.000227,2]
[311816576,1705432238454,-1600.0,0.000227,8]
[311816577,1705432238465,-161.85,0.00022715,2]
[311816579,1705432238476,-293.54629117,0.00022768,2]
[311816581,1705432238486,-310.08362313,0.00022769,2]
[311816583,1705432238497,-2100.0,0.000228,8]
[311816585,1705432238508,-161.85,0.00022861,2]
[311816587,1705432238519,-154.79769556,0.000229,2]
[311816589,1705432238529,-5958.3,0.000229,2]
[311816591,1705432238540,-189.42761612,0.000229,2]
[311816593,1705432238550,-196.48274202,0.000229,2]
[311816595,1705432238560,-758.28,0.000229,2]
[311816597,1705432238570,-548.1547935,0.000229,2]
[311816599,1705432238580,-598.10789158,0.000229,2]
[311816601,1705432238589,-166.05,0.000229,2]
[311816603,1705432238599,-1295.71667291,0.000229,2]
[311816605,1705432238609,-256.06753919,0.000229,2]
[311816607,1705432238620,-63.646687,0.000229,2]
[311816609,1705432238630,-400.0,0.000229,8]
[311816611,1705432238641,-400.0,0.00022925,2]
[311816613,1705432238650,-512.8888485,0.00022978,2]
[311816615,1705432238661,-1370.98811656,0.00022978,2]
[311816617,1705432238676,-3043.00044003,0.00022978,2]
[311816619,1705432238686,-1586.07230284,0.00022978,2]
[311816621,1705432238696,-2633.79492474,0.00022978,2]
[311816623,1705432238706,-542.62714348,0.00022978,2]
[311816625,1705432238717,-231.88293603,0.00022978,2]
[311816627,1705432238727,-4244.84167418,0.00022978,2]
[311816629,1705432238736,-2618.74812066,0.00022978,2]
[311816631,1705432238747,-171.79656324,0.00022978,2]
[311816633,1705432238756,-1255.53256283,0.00022978,2]
[311816635,1705432238766,-158.7139359,0.00022978,2]
[311816637,1705432238776,-155.0,0.00022978,2]
[311816639,1705432238786,-527.73969193,0.00022978,2]
[311816641,1705432238796,-27561.61578969,0.0002298,2]
[311816646,1705432238836,-146162.50243416,0.0002298,2]
[311816648,1705432238846,-354.27308638,0.00022999,2]
[311816650,1705432238855,-2796.84901767,0.00022999,2]
[311816651,1705432238865,-4831.26734995,0.00022999,2]
[311816652,1705432238874,-207.92940895,0.00022999,2]
[311816653,1705432238883,-300.0,0.00022999,2]
[311816654,1705432238892,-4220752.76092477,0.00023,2]
[311816655,1705432238901,-372862.87950942,0.00023,2]
[311816656,1705432238912,-37142.33504103,0.00023,2]
[311816661,1705432240478,-2394.288,0.00023,2]
[311816662,1705432240490,-7495.36162523,0.00023,2]
[311816663,1705432240503,-2650.7651343,0.00023,2]
[311816664,1705432240515,-342.1570288,0.00023,2]
[311816665,1705432240527,-1870.32490729,0.00023,2]
[311816666,1705432240564,-1500.0,0.00023,2]
[311816667,1705432240576,-821.90744022,0.00023,2]
[311816668,1705432240589,-688.57565016,0.00023,2]
[311816669,1705432240685,-2366.14186899,0.00023,2]
[311816691,1705432241548,-646.92000009,0.00023,2]
[311816692,1705432241560,-1243.0911921,0.00023,2]
[311816693,1705432241875,-782.23979208,0.00023,2]
[311816694,1705432241887,-292.008,0.00023,2]
[311816695,1705432241915,-1727.2,0.00023,2]
[311816696,1705432241928,-1310.40322222,0.00023,2]
[311816697,1705432241940,-995.449599,0.00023,2]
[311816698,1705432241973,-769.4801,0.00023,2]
[311816699,1705432241984,-785.69904767,0.00023,2]
[311816700,1705432241996,-730.07124766,0.00023,2]
[311816701,1705432242007,-681.91,0.00023,2]
[311816702,1705432242018,-12815.90828005,0.00023,2]
[311816703,1705432242029,-37708.30073276,0.00023,2]
[311816704,1705432243002,-161.64996316,0.00022999,2]
[311816705,1705432243012,-10338.40203684,0.00023,2]
[311816706,1705432243025,-9277.52869632,0.00023,2]
[311816707,1705432243060,-624.1021534,0.00023,2]
[311816708,1705432243130,-4376.77997176,0.00023,2]
[311816709,1705432243189,-898.20522835,0.00023,2]
[311816710,1705432243201,-2608.15308194,0.00023,2]
[311816711,1705432243213,-475.59598088,0.00023,2]
[311816712,1705432243254,-346479.17513158,0.00023,2]
[311816713,1705432243265,-629733.0945786,0.00023,2]
[311816720,1705432246123,-169.76540196,0.000229,2]
[311816721,1705432246134,-155.0,0.00022999,2]
[311816722,1705432246144,-867.03093739,0.00022999,2]
[311816723,1705432246154,-1168.07600089,0.00023,2]
[311816724,1705432246165,-304.73726745,0.00023,2]
[311816725,1705432246192,-2534.05,0.00023,2]
[311816726,1705432246204,-403.04925484,0.00023,2]
[311816727,1705432246352,-664.65863865,0.00023,2]
[311816728,1705432246365,-31011.81433538,0.00023,2]
[311816729,1705432246374,-161.85,0.00023007,2]
[311816730,1705432246384,-246.57,0.00023043,2]
[311816731,1705432246394,-155.12,0.00023048,2]
[311816732,1705432246403,-161.85,0.00023153,2]
[311816733,1705432246413,-161.85,0.00023299,2]
[311816734,1705432246422,-161.85,0.00023445,2]
[311816735,1705432246431,-32.9277384,0.00023591,2]
[311816736,1705432246444,-128.9222616,0.00023591,2]
[311816737,1705432246453,-157.54,0.00023605,2]
[311816738,1705432246463,-214.4,0.00023611,2]
[311816739,1705432246473,-157.54,0.00023786,2]
[311816740,1705432246483,-189.42761612,0.00023823,2]
[311816741,1705432246492,-205.0,0.00023957,2]
[311816742,1705432246502,-157.54,0.00023968,2]
[311816743,1705432246511,-5000.0,0.00024,2]
[311816745,1705432246520,-431.37614522,0.00024,2]
[311816747,1705432246530,-201.0574264,0.00024,2]
[311816748,1705432246538,-157.54,0.00024149,2]
[311816749,1705432246548,-686.70107885,0.00024179,2]
[311816750,1705432246557,-210.0,0.00024208,2]
[311816751,1705432246567,-157.54,0.00024331,2]
[311816752,1705432246577,-600.0,0.00024486,2]
[311816753,1705432246586,-157.54,0.00024512,2]
[311816754,1705432246595,-321.93,0.00024517,2]
[311816755,1705432246604,-214.4,0.0002459,2]
[311816756,1705432246613,-250.0,0.00024658,2]
[311816757,1705432246624,-157.54,0.00024694,2]
[311816758,1705432246633,-189.42761612,0.00024745,2]
[311816759,1705432246644,-157.54,0.00024875,2]
[311816760,1705432246654,-201.95095563,0.00025,2]
[311816761,1705432246663,-1248.38541945,0.00025,2]
[311816762,1705432246674,-1583.52448944,0.00025,2]
[311816763,1705432246684,-167.30708743,0.00025,2]
[311816764,1705432246695,-374.71049551,0.00025,2]
[311816765,1705432246705,-1791.83667153,0.00025,2]
[311816766,1705432246716,-303.34687539,0.00025,2]
[311816767,1705432246728,-1250.0,0.00025,3]
[311816768,1705432246738,-342.50380917,0.00025047,2]
[311816769,1705432246748,-157.54,0.00025057,2]
[311816770,1705432246757,-157.54,0.00025239,2]
[311816771,1705432246768,-157.54,0.0002542,2]
[311816772,1705432246778,-214.4,0.00025568,2]
[311816773,1705432246788,-157.54,0.00025602,2]
[311816774,1705432246798,-686.70107885,0.00025657,2]
[311816775,1705432246808,-189.42761612,0.00025668,2]
[311816776,1705432246818,-167.0,0.00025671,2]
[311816777,1705432246828,-157.54,0.00025783,2]
[311816778,1705432246839,-400.0,0.0002579,2]
[311816779,1705432246849,-157.54,0.00025965,2]
[311816780,1705432246861,-3720.6412,0.00026475,2]
[311816781,1705432246871,-214.4,0.00026547,2]
[311816782,1705432246882,-14243.67,0.00026575,2]
[311816783,1705432246892,-189.42761612,0.00026591,2]
[311816784,1705432246903,-321.93,0.0002678,2]
[311816785,1705432246914,-155.0,0.00027,2]
[311816786,1705432246924,-1300.0,0.00027,3]
[311816787,1705432246934,-686.70107885,0.00027136,3]
[311816788,1705432246944,-600.0,0.00027207,2]
[311816789,1705432246954,-155.12,0.00027384,2]
[311816790,1705432246964,-155.0,0.00027397,2]
[311816791,1705432246973,-189.42761612,0.00027514,2]
[311816792,1705432246983,-214.4,0.00027525,2]
[311816793,1705432246993,-205.0,0.00027561,7]
[311816794,1705432247002,-167.0,0.0002779,2]
[311816795,1705432247011,-598.10789156,0.00027838,2]
[311816796,1705432247020,-1295.71667291,0.00027838,2]
[311816797,1705432247030,-364.25149533,0.00028,2]
[311816798,1705432247041,-202.97954373,0.00028,2]
[311816799,1705432247050,-688.52328288,0.00028,2]
[311816800,1705432247059,-189.42761612,0.00028436,2]
[311816801,1705432247069,-214.4,0.00028504,2]
[311816802,1705432247078,-686.70107885,0.00028614,4]
[311816803,1705432247088,-400.0,0.00028656,2]
[311816804,1705432247098,-155.0,0.00028767,2]
[311816805,1705432247108,-166.78265795,0.00028822,2]
[311816806,1705432247119,-1350.0,0.00029,3]
[311816807,1705432247129,-321.93,0.00029044,2]
[311816808,1705432247138,-196.48274201,0.00029071,2]
[311816809,1705432247147,-189.42761612,0.00029359,2]
[311816810,1705432247156,-214.4,0.00029482,2]
[311816811,1705432247165,-4905.42373496,0.000297,2]
[311816812,1705432247175,-175.43459194,0.000298,2]
[311816813,1705432247185,-940.88,0.00029835,2]
[311816814,1705432247195,-940.88,0.00029835,2]
[311816815,1705432247205,-940.88,0.00029835,2]
[311816816,1705432247215,-401.54,0.00029835,2]
[311816817,1705432247224,-401.54,0.00029835,2]
[311816818,1705432247234,-940.88,0.00029835,2]
[311816819,1705432247243,-153.59572148,0.00029888,2]
[311816820,1705432247252,-167.0,0.00029908,2]
[311816821,1705432247261,-7999.99,0.00029914,6]
[311816822,1705432247271,-322.72569877,0.00029914,2]
[311816823,1705432247280,-1000.0,0.00029914,2]
[311816824,1705432247289,-600.0,0.00029927,2]
[311816825,1705432247298,-100000.0,0.0003,2]
[311816826,1705432247307,-500.0,0.0003,2]
[311816827,1705432247316,-1090.48374211,0.0003,4]
[311816828,1705432247325,-691.51374802,0.0003,2]
[311816829,1705432247337,-155.0,0.0003,2]
[311816830,1705432247346,-582.28505175,0.0003,2]
[311816831,1705432247355,-8835.80672558,0.0003,4]
[311816832,1705432247365,-9633.53610727,0.0003,2]
[311816833,1705432247374,-770.36519149,0.0003,2]
[311816834,1705432247383,-2500.0,0.0003,2]
[311816835,1705432247392,-30147.98794723,0.0003,2]
[311816836,1705432247402,-5267.84755185,0.0003,2]
[311816837,1705432247415,-308.25,0.0003,2]
[311816840,1705432262143,161.64996316,0.00020698,2]
[311816870,1705432438285,730.66371542,0.00021,2]
[311816872,1705432457513,170.0890639,0.00021,2]
[311816879,1705432714018,205.0,0.00021957,2]
[311816882,1705432791723,169.68,0.00021079,2]
[311816883,1705432804339,-527.73969193,0.00022274,2]
[311816884,1705432804361,-1472.26030807,0.00022274,2]
[311816885,1705432804852,-2000.0,0.00022274,2]
[311816886,1705432816173,-2000.0,0.00022273,2]
[311816898,1705432859777,157.26979503,0.00022171,2]
[311816902,1705432902088,756.85744404,0.000222,2]
[311816909,1705432925145,155.0,0.00022171,2]
[311816910,1705432926056,3193.9200469,0.00022171,2]
[311816911,1705432942736,3193.9200469,0.00022171,2]
[311816912,1705432943353,155.0,0.00022171,2]
[311816913,1705432950797,155.0,0.0002217,2]
[311816914,1705432960055,788.85242177,0.00022171,2]
[311816915,1705432961141,303.41549155,0.00022171,2]
[311816916,1705433027583,729.30403692,0.00021,2]
[311816919,1705433090156,721.84,0.00021,2]
[311816920,1705433111238,164.28,0.00025843,120]
[311816921,1705433238295,169.68,0.00020824,2]
[311816973,1705433432192,-558.63203499,0.00022213,2]
[311816974,1705433432203,-215.06569846,0.00022213,2]
[311816975,1705433432212,-155.0,0.00022214,2]
[311816976,1705433432223,-161.64996316,0.00022214,2]
[311816977,1705433432236,-7101.97002612,0.00022214,5]
[311816978,1705433432246,-5099.53737617,0.00022214,2]
[311816979,1705433432265,-190.86952875,0.00022215,2]
[311816980,1705433432275,-1060.75904416,0.00022215,2]
[311816981,1705433432286,-16759.79956179,0.00022215,2]
[311816982,1705433432296,-4349.20960568,0.00022216,2]
[311816983,1705433432306,-155.0,0.00022216,2]
[311816984,1705433432316,-150.0,0.00022216,2]
[311816985,1705433432325,-228.26905656,0.00022217,2]
[311816986,1705433432335,-3555.11984037,0.00022217,2]
[311816987,1705433432345,-867.03093739,0.00022218,2]
[311816988,1705433432355,-3029.53701716,0.00022219,2]
[311816989,1705433432365,-190.35323516,0.00022222,2]
[311816990,1705433432375,-5713.05286776,0.00022267,2]
[311816991,1705433432387,-721.87,0.00022308,2]
[311816992,1705433432397,-2074.93277737,0.00022308,2]
[311816993,1705433432406,-378.54,0.00022308,2]
[311816994,1705433432416,-499.99,0.00022308,2]
[311816995,1705433432427,-2951.1271704,0.0002288,2]
[311816996,1705433432440,-1268.8341296,0.0002288,2]
[311816997,1705433432450,-24.12863109,0.0002288,2]
[311816998,1705433432464,-8310.39537342,0.0002288,2]
[311816999,1705433432499,-12168.11059009,0.0002288,2]
[311817000,1705433432511,-1922.96638505,0.0002288,2]
[311817001,1705433432524,-326.43046132,0.0002288,2]
[311817003,1705433432549,-3556.76371237,0.0002288,2]
[311817056,1705433433697,-415.39,0.0002288,2]
[311817057,1705433433709,-6432.22103282,0.0002288,2]
[311817058,1705433433721,-13023.58049051,0.0002288,2]
[311817059,1705433433735,-1127.3767494,0.0002288,2]
[311817060,1705433433765,-948.21495962,0.0002288,2]
[311817061,1705433433777,-43433.76421494,0.0002288,2]
[311817070,1705433438726,-3029.53701716,0.00022212,2]
[311817072,1705433438736,-11642.84040227,0.0002288,2]
[311817074,1705433438747,-7017.3774971,0.0002288,2]
[311817076,1705433438756,-494.59,0.0002288,2]
[311817078,1705433438766,-894.0449,0.000229,2]
[311817080,1705433438775,-150.0,0.000229,2]
[311817082,1705433438785,-10582.53620013,0.00022998,2]
[311817084,1705433438794,-186.1460564,0.00022999,2]
[311817086,1705433438804,-301.84,0.00023965,2]
[311817088,1705433438813,-201.0574264,0.00024,2]
[311817090,1705433438823,-431.37614522,0.00024,2]
[311817092,1705433438832,-205.0,0.00024184,2]
[311817094,1705433438841,-616.09,0.00024945,2]
[311817096,1705433438850,-1000.0,0.00025,2]
[311817098,1705433438859,-322.72569877,0.00025,2]
[311817100,1705433438869,-201.95095563,0.00025,2]
[311817102,1705433438879,-167.30708743,0.00025,2]
[311817105,1705433438889,-1583.52448944,0.00025,2]
[311817107,1705433438899,-303.34687539,0.00025,2]
[311817109,1705433438910,-933.54690587,0.00025,2]
[311817110,1705433438920,-374.71049551,0.00025,2]
[311817113,1705433438929,-1250.0,0.00025,3]
[311817115,1705433438939,-206.18,0.00025033,2]
[311817117,1705433438948,-1178.77137504,0.00025047,2]
[311817119,1705433438957,-160.25,0.0002524,2]
[311817120,1705433438967,-157.269795,0.00025593,2]
[311817122,1705433438976,-2000.0,0.00025636,2]
[311817125,1705433438985,-250.0,0.00025636,2]
[311817126,1705433438995,-10000.0,0.00025747,2]
[311817128,1705433439004,-880.0,0.00025842,2]
[311817130,1705433439013,-200.0,0.00025843,2]
[311817131,1705433439023,-508.62062746,0.00025843,2]
[311817132,1705433439032,-150.0,0.00025955,2]
[311817133,1705433439041,-186.5,0.00025997,2]
[311817134,1705433439051,-158.07,0.00025998,2]
[311817135,1705433439060,-286.95,0.00026206,2]
[311817136,1705433439069,-301.84,0.00026228,2]
[311817137,1705433439079,-1311.27,0.00026353,2]
[311817139,1705433439088,-418.6,0.00026353,2]
[311817141,1705433439097,-175.68,0.00026495,2]
[311817143,1705433439106,-160.25,0.00026556,2]
[311817145,1705433439115,-12096.67678748,0.00026575,2]
[311817147,1705433439127,-2081.72321252,0.00026575,2]
[311817149,1705433439136,-186.5,0.00026975,2]
[311817151,1705433439145,-155.0,0.00027,2]
[311817153,1705433439154,-1300.0,0.00027,3]
[311817155,1705433439163,-167.0,0.00027234,2]
[311817157,1705433439172,-155.0,0.00027397,2]
[311817159,1705433439181,-190.13,0.000276,2]
[311817161,1705433439190,-3633.0400641,0.000277,6]
[311817163,1705433439199,-1284.0,0.000277,2]
[311817165,1705433439208,-175.68,0.00027953,2]
[311817167,1705433439217,-186.5,0.00027954,2]
[311817169,1705433439226,-364.25149533,0.00028,2]
[311817171,1705433439235,-202.97954373,0.00028,2]
[311817173,1705433439246,-688.52328288,0.00028,2]
[311817175,1705433439255,-301.84,0.00028492,2]
[311817177,1705433439264,-205.0,0.00028661,9]
[311817179,1705433439272,-155.0,0.00028767,2]
[311817181,1705433439281,-401.54,0.00028876,2]
[311817183,1705433439290,-401.54,0.00028876,2]
[311817185,1705433439298,-940.88,0.00028876,2]
[311817187,1705433439308,-401.54,0.00028876,2]
[311817189,1705433439316,-940.88,0.00028876,2]
[311817191,1705433439326,-940.88,0.00028876,2]
[311817193,1705433439336,-401.54,0.00028876,2]
[311817195,1705433439345,-401.54,0.00028876,2]
[311817197,1705433439355,-940.88,0.00028876,2]
[311817199,1705433439363,-186.5,0.00028932,2]
[311817201,1705433439372,-1350.0,0.00029,3]
[311817203,1705433439384,-157.269795,0.00029014,2]
[311817205,1705433439395,-940.88,0.00029041,2]
[311817207,1705433439403,-880.0,0.00029072,2]
[311817209,1705433439412,-175.68,0.0002941,2]
[311817211,1705433439423,-167.0,0.00029481,2]
[311817213,1705433439432,-153.59572149,0.00029544,2]
[311817215,1705433439441,-4247.87686113,0.00029698,2]
[311817216,1705433439450,-4905.42373496,0.000297,2]
[311817219,1705433439460,-175.43459194,0.000298,2]
[311817221,1705433439470,-798.04,0.00029835,2]
[311817223,1705433439479,-940.88,0.00029835,2]
[311817224,1705433439491,-940.88,0.00029835,2]
[311817226,1705433439501,-940.88,0.00029835,2]
[311817228,1705433439511,-940.88,0.00029835,2]
[311817230,1705433439519,-1174.49,0.00029835,2]
[311817232,1705433439529,-458.68672483,0.000299,4]
[311817234,1705433439538,-186.5,0.00029911,2]
[311817237,1705433439549,-155.4439,0.00029995,2]
[311817238,1705433439559,-6512.39967747,0.0003,2]
[311817241,1705433439574,-1372.06793841,0.0003,2]
[311817243,1705433439586,-13146.68010839,0.0003,2]
[311817245,1705433439596,-4020.11128181,0.0003,2]
[311817248,1705433439607,-7442.804616,0.0003,2]
[311817266,1705433439764,-391.45736558,0.0003,2]
[311817268,1705433439775,-7864.88751836,0.0003,2]
[311817270,1705433439786,-739.337599,0.0003,2]
[311817274,1705433439809,-1002.11095932,0.0003,2]
[311817276,1705433439821,-15548.54327604,0.0003,2]
[311817370,1705433440740,-19813.61173394,0.0003,2]
[311817373,1705433440755,-1709.28269958,0.0003,2]
[311817429,1705433441270,-429.0,0.0003,2]
[311817436,1705433441328,-3033.75636703,0.0003,2]
[311817622,1705433443164,-923.138549,0.0003,2]
[311817634,1705433443274,-1126.65180382,0.0003,2]
[311817636,1705433443285,-19853.08556169,0.0003,2]
[311817641,1705433443331,-5834.25095113,0.0003,2]
[311817648,1705433443391,-401.47892665,0.00028876,2]
[311817650,1705433443402,-0.06107335,0.00028876,2]
[311817652,1705433443412,-409.97467385,0.0003,2]
[311817654,1705433443422,-103.41926778,0.0003,4]
[311817931,1705433446255,-155.0,0.00029999,2]
[311817933,1705433446264,-228.26905656,0.00029999,2]
[311817935,1705433446274,-716.47728148,0.0003,4]